bitfinex-derivatives/quotes_ETHF0:USTF0_20250904
["timestamp","ask_amount","ask_price","bid_price","bid_amount"]
[1756946755591,0.6851,4471.4,4470.6,0.97186273]
[1756946755786,0.284,4471.3,4470.7,0.2918]
[1756946755990,0.4805,4470.8,4470.7,0.7031]
[1756946756186,0.6851,4470.8,4470.7,0.7031]
[1756946757794,0.6851,4470.8,4470.7,0.2076]
[1756946757994,0.6851,4470.8,4470.7,0.7031]
[1756946762696,1.2041936,4470.8,4470.7,0.7031]
[1756946763392,0.5190936,4470.8,4470.7,0.7031]
[1756946763597,0.7155936,4470.8,4470.7,0.7031]
[1756946764199,0.9995936,4470.8,4470.7,0.7031]
[1756946764790,1.2041936,4470.8,4470.1,0.2918]
[1756946764997,0.6851,4470.2,4470.1,0.7031]
[1756946765199,1.2041936,4470.2,4470.1,0.7031]
[1756946770002,1.2041936,4470.2,4470.1,0.4113]
[1756946770307,1.2041936,4470.2,4470.1,0.7031]
[1756946774897,1.2041936,4470.2,4469.6,0.2901]
[1756946775104,0.7099,4469.7,4469.6,0.6772]
[1756946775303,0.7099,4469.7,4469.0,0.1215]
[1756946775304,1.2289936,4469.7,4469.1,0.2901]
[1756946775606,0.7099,4469.2,4469.1,0.90094999]
[1756946775803,1.23071651,4469.2,4469.1,0.1921]
[1756946776207,1.23074429,4469.2,4469.1,0.1921]
[1756946776613,1.23074429,4469.2,4468.8,0.2901]
[1756946776812,0.97186273,4469.4,4468.8,0.6772]
[1756946776813,0.7099,4468.9,4468.8,0.6772]
[1756946778018,1.23031368,4468.9,4468.8,0.1921]
[1756946781314,1.23031368,4468.9,4468.5,0.2901]
[1756946781509,0.516,4468.2,4468.1,0.6772]
[1756946781711,0.3098,4468.5,4468.2,0.2901]
[1756946782008,0.516,4468.5,4468.4,0.6772]
[1756946784118,0.7099,4468.5,4468.4,0.4822]
[1756946784322,0.7099,4468.5,4468.4,0.6772]
[1756946788016,0.516,4469.0,4468.9,0.3871]
[1756946788221,0.516,4469.0,4468.9,0.6772]
[1756946788422,1.23093857,4469.0,4468.9,0.6772]
[1756946788821,1.35463857,4469.0,4468.9,0.4822]
[1756946789221,1.35463857,4469.0,4468.4,0.97186273]
[1756946789523,0.2062,4468.5,4468.4,1.35896273]
[1756946789723,0.516,4468.5,4468.4,1.35896273]
[1756946790023,0.516,4468.5,4468.4,1.64906273]
[1756946790219,0.2062,4468.5,4468.4,1.64906273]
[1756946790419,0.3098,4468.9,4468.5,0.4041]
[1756946790723,0.7099,4468.9,4468.8,0.6772]
[1756946790925,1.23098881,4468.9,4468.8,0.6772]
[1756946791324,1.23098881,4468.9,4468.8,0.4822]
[1756946791623,1.23098881,4468.9,4468.8,0.1921]
[1756946791821,1.23098881,4468.9,4468.8,0.6772]
[1756946793923,0.52108881,4468.9,4468.8,4.90096999]
[1756946794220,0.7099,4470.4,4470.3,0.1921]
[1756946794425,1.23130391,4470.4,4470.3,0.1921]
[1756946794730,1.23130391,4470.4,4470.1,0.2901]
[1756946795026,0.516,4469.7,4469.6,0.6772]
[1756946795627,0.516,4469.7,4469.6,1.4882003]
[1756946795818,0.2062,4469.7,4469.6,1.4882003]
[1756946796220,0.516,4469.7,4469.6,1.4882003]
[1756946797025,0.3098,4470.0,4469.6,1.1981003]
[1756946797328,0.516,4470.4,4470.3,0.3871]
[1756946797526,1.23147084,4470.4,4470.3,0.6772]
[1756946798727,1.20694859,4471.8,4470.3,4.3871]
[1756946798931,0.1237,4472.0,4470.0,0.9250003]
[1756946798932,0.7099,4471.6,4471.5,1.4882003]
[1756946799130,1.2313904,4471.6,4471.5,1.4882003]
[1756946800035,1.2313904,4471.6,4471.5,0.6772]
[1756946800530,1.2313904,4471.6,4471.5,0.4822]
[1756946801031,1.2313904,4471.6,4471.5,0.6772]
[1756946802339,0.7099,4471.6,4471.5,0.6772]
[1756946802723,0.822,4471.0,4470.9,0.5048]
[1756946803435,0.7035,4471.0,4470.9,0.7014]
[1756946806643,0.7035,4471.0,4470.9,1.5124003]
[1756946807344,0.7035,4471.0,4470.6,0.3083]
[1756946807345,0.822,4471.0,4470.6,0.3083]
[1756946807541,0.822,4471.0,4470.5,0.3083]
[1756946807542,0.5205,4471.0,4470.5,0.3083]
[1756946807742,0.5076,4470.5,4470.4,1.2041003]
[1756946808043,0.2061,4470.6,4470.5,0.509]
[1756946808243,0.2061,4470.6,4470.5,0.8173]
[1756946808446,0.5076,4470.6,4470.5,0.8173]
[1756946808939,0.1185,4470.5,4470.2,0.3083]
[1756946809143,0.7035,4470.3,4470.2,0.5048]
[1756946809345,0.7035,4470.3,4469.5,0.114]
[1756946809346,1.5145003,4470.3,4469.9,0.3083]
[1756946809645,0.402,4470.3,4469.9,1.1193003]
[1756946809844,0.402,4470.0,4469.9,1.3158003]
[1756946810048,0.7035,4470.0,4469.9,1.3158003]
[1756946810345,0.822,4470.0,4469.9,1.3158003]
[1756946810937,0.5076,4470.0,4469.9,1.5124003]
[1756946811142,0.402,4470.5,4470.4,0.7014]
[1756946811342,0.6945,4471.0,4470.9,0.1965]
[1756946811548,1.21468613,4471.0,4470.6,0.3083]
[1756946811844,0.402,4470.7,4470.4,0.8110003]
[1756946812041,0.7035,4470.6,4470.5,0.1965]
[1756946812235,0.7035,4470.6,4470.5,0.5048]
[1756946812548,1.22376066,4470.6,4470.5,0.5048]
[1756946812846,1.22376066,4470.6,4470.5,0.7014]
[1756946813440,0.1185,4470.5,4470.0,0.3083]
[1756946813640,0.7035,4470.1,4470.0,0.7014]
[1756946815041,0.7035,4470.1,4469.9,0.8110003]
[1756946815042,0.822,4470.0,4469.9,1.0075003]
[1756946815242,1.04100203,4470.0,4469.6,1.1193003]
[1756946815445,0.7035,4469.7,4469.6,1.3158003]
[1756946816548,1.22427341,4469.7,4469.6,1.0075003]
[1756946817853,0.3015,4470.3,4469.6,1.2041003]
[1756946818144,0.3015,4470.3,4469.5,0.1159]
[1756946818145,0.7035,4470.3,4470.2,0.1965]
[1756946818348,0.7035,4469.7,4469.6,0.7014]
[1756946818548,1.22440084,4469.7,4469.6,1.5124003]
[1756946819245,0.52090084,4469.7,4469.6,1.5124003]
[1756946819452,0.52090084,4469.7,4469.6,1.2041003]
[1756946819641,0.52090084,4470.0,4469.6,1.5124003]
[1756946819846,0.52090084,4469.9,4469.7,0.3083]
[1756946820046,0.52090084,4469.8,4469.7,0.7014]
[1756946820450,0.3015,4470.0,4469.8,0.3083]
[1756946820649,0.5076,4470.0,4469.9,0.7014]
[1756946821153,0.5076,4470.0,4469.9,1.5124003]
[1756946821355,1.02894956,4470.0,4469.9,1.5124003]
[1756946821651,1.02894956,4470.0,4469.9,0.7014]
[1756946821852,1.02894956,4470.0,4469.9,1.5124003]
[1756946822255,1.22484956,4470.0,4469.9,1.5124003]
[1756946822549,0.3015,4469.9,4469.6,1.1193003]
[1756946822759,0.7035,4469.7,4469.6,1.3158003]
[1756946822961,0.7035,4469.7,4469.6,1.5124003]
[1756946823254,0.3015,4470.4,4469.6,1.2041003]
[1756946823452,0.3015,4470.4,4469.5,0.1159]
[1756946823453,0.7035,4470.0,4469.9,1.5124003]
[1756946823652,1.34406888,4470.0,4469.9,1.5124003]
[1756946824446,1.22556888,4470.0,4469.9,1.5124003]
[1756946825554,1.04256888,4470.0,4469.6,0.3083]
[1756946825760,0.7035,4469.5,4469.4,0.7014]
[1756946826257,0.822,4469.5,4469.4,0.7014]
[1756946826760,0.7035,4469.1,4469.0,0.5048]
[1756946827460,0.7035,4469.1,4469.0,0.7014]
[1756946829461,0.1185,4470.5,4469.8,0.7014]
[1756946829759,0.2061,4470.1,4470.0,1.5124003]
[1756946829949,1.02945418,4470.1,4470.0,1.5124003]
[1756946830149,1.22535418,4470.1,4470.0,1.5124003]
[1756946830349,1.22535418,4470.1,4470.0,0.7014]
[1756946830554,1.22535418,4470.1,4470.0,0.1965]
[1756946830857,1.22535418,4470.1,4469.6,0.3083]
[1756946831054,0.7035,4469.7,4469.6,0.7014]
[1756946837262,1.22634984,4469.7,4469.6,0.7014]
[1756946837959,0.72894984,4469.7,4469.6,0.7014]
[1756946838560,0.52284984,4469.7,4469.6,0.7014]
[1756946841866,0.2911,4470.4,4469.7,0.3018]
[1756946842166,0.6896,4470.4,4470.3,0.6923]
[1756946842372,1.21297165,4470.4,4470.3,0.6923]
[1756946843864,1.21297165,4470.4,4470.3,0.3905]
[1756946845066,1.21297165,4470.4,4470.3,0.1953]
[1756946845264,0.92187165,4470.4,4470.0,1.1128003]
[1756946845465,0.6896,4470.1,4470.0,1.3081003]
[1756946845762,1.21297165,4470.1,4470.0,1.3081003]
[1756946846266,1.21297165,4470.1,4470.0,0.4971]
[1756946846763,1.21297165,4470.1,4470.0,0.6923]
[1756946847154,0.52337165,4470.1,4470.0,0.8115]
[1756946847361,0.52337165,4470.4,4470.0,0.8115]
[1756946847558,0.6896,4470.3,4470.2,0.3905]
[1756946847762,0.6896,4470.1,4470.0,1.3081003]
[1756946847961,1.21297165,4470.1,4470.0,1.3081003]
[1756946848160,0.1214,4470.0,4469.6,0.3018]
[1756946848364,0.6896,4469.7,4469.6,0.6923]
[1756946849968,0.1945,4469.7,4469.6,0.6923]
[1756946850262,0.4856,4470.4,4470.3,0.6923]
[1756946850464,0.4856,4470.4,4470.3,1.5033003]
[1756946850665,1.00900644,4470.4,4470.3,1.5033003]
[1756946850865,0.2911,4471.2,4470.3,5.7270003]
[1756946851168,0.52333968,4471.1,4471.0,0.8115]
[1756946851562,0.2911,4471.9,4471.1,0.3018]
[1756946851766,0.6896,4471.7,4471.6,0.1953]
[1756946851957,1.21254659,4471.7,4471.6,0.4971]
[1756946852165,1.21254659,4471.7,4471.6,0.6923]
[1756946852471,1.21254659,4471.7,4471.6,0.1953]
[1756946852765,0.92144659,4471.7,4471.3,1.1128003]
[1756946852972,1.21254659,4471.6,4471.5,0.1953]
[1756946853170,1.21254659,4471.6,4471.5,0.4971]
[1756946854571,0.6896,4471.4,4471.3,0.8110003]
[1756946854769,1.21254659,4471.4,4471.3,0.8110003]
[1756946855072,1.21254659,4471.4,4471.3,1.3081003]
[1756946855270,1.21254659,4471.4,4471.3,1.5033003]
[1756946856567,0.52294659,4471.4,4471.3,1.5033003]
[1756946856866,0.811,4471.5,4471.4,0.1953]
[1756946857066,1.33295098,4471.5,4471.4,0.1953]
[1756946859360,1.33295098,4471.5,4471.1,1.27431546]
[1756946859568,0.6896,4471.2,4471.1,1.46961546]
[1756946859871,0.6896,4471.2,4471.1,0.4971]
[1756946860770,0.6896,4471.2,4471.1,1.66481546]
[1756946862572,0.6896,4471.2,4471.1,1.64961546]
[1756946862775,0.9202659,4471.2,4470.7,0.97251546]
[1756946862975,0.3875,4470.9,4470.8,0.6875]
[1756946863272,1.1946659,4470.9,4470.8,0.6875]
[1756946865063,0.9092659,4470.9,4470.5,1.25911546]
[1756946865264,0.6729,4470.6,4470.5,0.4791]
[1756946865475,1.1946659,4470.6,4470.5,0.1925]
[1756946865972,1.1946659,4470.6,4470.5,0.4791]
[1756946867368,1.1946659,4470.6,4470.5,0.1925]
[1756946868563,1.1946659,4470.6,4470.4,0.97251546]
[1756946868564,0.7894,4470.5,4470.4,0.97251546]
[1756946868768,1.3111659,4470.5,4470.4,0.97251546]
[1756946868975,1.3111659,4470.5,4470.4,1.16501546]
[1756946869771,0.3875,4469.8,4469.3,0.2866]
[1756946870073,0.6729,4469.2,4469.1,0.6875]
[1756946870275,0.9092659,4469.2,4468.7,0.97251546]
[1756946870573,0.6729,4468.8,4468.7,1.66001546]
[1756946870773,1.1946659,4468.8,4468.7,1.66001546]
[1756946872572,0.2854,4469.5,4468.7,5.88379546]
[1756946872767,0.6729,4469.5,4469.4,1.66001546]
[1756946872968,1.31203472,4469.5,4469.1,0.97251546]
[1756946873177,0.6729,4469.1,4469.0,1.16501546]
[1756946874279,0.6729,4469.1,4469.0,1.66001546]
[1756946878377,0.6729,4469.1,4469.0,0.1925]
[1756946878682,0.6729,4468.8,4468.7,1.45161546]
[1756946879077,0.6729,4468.8,4468.7,1.66001546]
[1756946880474,0.6729,4469.4,4469.3,0.1925]
[1756946880674,0.6729,4469.4,4469.3,1.66001546]
[1756946880874,0.3005,4470.0,4469.3,1.37341546]
[1756946880875,0.2854,4469.8,4469.3,1.37341546]
[1756946881182,0.6729,4469.8,4469.7,1.37341546]
[1756946881383,0.6729,4469.8,4469.7,1.16501546]
[1756946882383,0.6729,4469.8,4469.7,1.45161546]
[1756946882683,1.19445751,4469.8,4469.7,0.4791]
[1756946883578,1.19445751,4469.8,4469.7,0.6875]
[1756946888484,1.19445751,4469.8,4469.6,0.97251546]
[1756946888686,0.1165,4470.0,4469.4,0.97251546]
[1756946888886,0.6729,4469.5,4469.4,1.66001546]
[1756946889086,0.3875,4469.9,4469.8,0.4009]
[1756946889381,1.19475957,4469.9,4469.8,0.6875]
[1756946889685,0.3875,4469.6,4469.5,0.4791]
[1756946889891,0.3875,4469.6,4469.5,0.6875]
[1756946889892,0.6729,4469.6,4469.5,0.6875]
[1756946891289,1.19505361,4469.6,4469.5,0.6875]
[1756946891686,0.2854,4470.1,4469.5,0.5222]
[1756946891882,0.6709,4469.9,4469.8,1.65691546]
[1756946892091,1.19305622,4469.9,4469.8,1.65691546]
[1756946893587,0.52215622,4469.9,4469.8,1.65691546]
[1756946893781,0.4733,4470.6,4470.5,0.4935]
[1756946893984,0.4733,4470.6,4470.5,0.777]
[1756946894188,0.99582105,4470.6,4470.5,0.777]
[1756946894585,0.52252105,4470.6,4470.5,0.777]
[1756946894887,0.1165,4472.0,4471.2,0.2835]
[1756946895196,1.18730581,4471.9,4471.8,0.1891]
[1756946896389,1.18730581,4471.9,4471.5,0.2835]
[1756946896592,0.3813,4471.6,4471.5,0.4726]
[1756946896883,0.3813,4471.3,4471.2,0.3785]
[1756946897189,1.18730581,4471.3,4471.2,0.662]
[1756946897888,0.2834,4471.7,4471.2,0.662]
[1756946898093,0.2834,4471.5,4471.3,0.2835]
[1756946898387,0.52249383,4471.4,4471.3,0.662]
[1756946898689,0.71239383,4471.4,4471.3,0.662]
[1756946898885,0.52249383,4471.4,4471.3,0.662]
[1756946899091,0.227,4472.1,4471.3,0.3785]
[1756946899092,0.5104,4472.1,4471.3,0.3785]
[1756946899283,0.9957046,4472.0,4471.9,0.3785]
[1756946899682,1.1871046,4472.0,4471.9,0.662]
[1756946902379,1.3006046,4472.0,4471.9,0.1891]
[1756946902579,0.2834,4471.9,4471.8,0.97251546]
[1756946902785,1.1871046,4471.9,4471.8,1.63451546]
[1756946903081,0.2834,4471.8,4471.5,0.2835]
[1756946903287,0.6647,4471.2,4471.1,0.4726]
[1756946903491,1.1871046,4471.2,4471.1,0.662]
[1756946904992,1.1871046,4471.2,4471.1,0.3785]
[1756946905187,1.18663972,4471.2,4471.1,0.1891]
[1756946905399,0.6647,4470.7,4470.6,0.1891]
[1756946905696,1.18663972,4470.7,4470.6,1.63451546]
[1756946906189,0.52193972,4470.7,4470.6,1.63451546]
[1756946906390,0.2834,4471.0,4470.7,0.2835]
[1756946906690,0.4733,4471.0,4470.9,1.63451546]
[1756946906891,0.99528361,4471.0,4470.9,1.63451546]
[1756946907396,1.18668361,4471.0,4470.9,1.63451546]
[1756946907698,1.30018361,4471.0,4470.9,1.63451546]
[1756946908291,1.30018361,4471.0,4470.9,1.35101546]
[1756946908594,0.6647,4470.6,4470.5,1.44511546]
[1756946908788,1.18668361,4470.6,4470.5,1.44511546]
[1756946909293,1.18668361,4470.6,4470.5,1.63451546]
[1756946912703,0.6647,4470.6,4470.5,1.63451546]
[1756946913695,0.2834,4471.4,4470.6,0.2835]
[1756946913897,0.4733,4470.7,4470.6,0.662]
[1756946915098,0.4733,4470.7,4470.6,1.63451546]
[1756946916699,0.6647,4470.7,4470.6,1.63451546]
[1756946917099,0.2834,4471.0,4470.6,1.63451546]
[1756946917405,0.4733,4471.0,4470.9,0.662]
[1756946917608,1.18759768,4471.0,4470.9,0.662]
[1756946919503,1.18759768,4471.0,4470.9,1.47253173]
[1756946920198,0.71279768,4471.0,4470.9,1.47253173]
[1756946920404,0.52289768,4471.0,4470.9,1.47253173]
[1756946922091,0.3071,4471.6,4471.0,0.4119]
[1756946922291,0.5008,4471.6,4471.5,1.48543173]
[1756946922692,0.5008,4471.6,4471.5,1.60943173]
[1756946922893,1.0249185,4471.6,4471.5,1.60943173]
[1756946923205,1.0249185,4471.6,4471.5,2.41996346]
[1756946923206,0.5241185,4471.6,4471.5,2.41996346]
[1756946923398,0.5241185,4471.6,4471.5,2.13206346]
[1756946923600,0.5008,4472.0,4471.9,0.387]
[1756946923799,1.02534688,4472.0,4471.9,1.48543173]
[1756946924404,0.52454688,4472.0,4471.9,1.48543173]
[1756946925299,0.7038,4472.6,4472.5,0.387]
[1756946925505,1.22793513,4472.6,4472.5,1.48543173]
[1756946927103,1.22793513,4472.6,4472.5,1.60943173]
[1756946933510,1.22793513,4472.6,4472.5,1.48543173]
[1756946934109,1.22793513,4472.6,4472.5,1.60943173]
[1756946934911,1.22793513,4472.6,4472.5,1.48543173]
[1756946939613,1.22793513,4472.6,4472.5,1.60943173]
[1756946940411,1.02493513,4472.6,4472.5,1.60943173]
[1756946940805,0.52413513,4472.6,4472.5,1.60943173]
[1756946941210,1.22793513,4472.6,4472.5,1.48543173]
[1756946942018,1.22793513,4472.6,4472.5,1.60943173]
[1756946946213,1.22793513,4472.6,4472.5,0.6749]
[1756946946418,1.22793513,4472.6,4472.5,1.48543173]
[1756946947017,0.5167,4472.0,4471.5,0.17470856]
[1756946947216,0.3967,4471.7,4471.6,0.6749]
[1756946947417,0.7038,4471.7,4471.6,1.48543173]
[1756946947717,1.22693719,4471.7,4471.6,1.48543173]
[1756946952709,0.3071,4472.4,4471.7,0.302]
[1756946952914,0.7131,4472.4,4472.3,1.30713173]
[1756946953212,1.23745145,4472.4,4472.3,1.30713173]
[1756946954421,1.23745145,4472.4,4472.3,1.51053173]
[1756946955314,0.52435145,4472.4,4472.3,1.51053173]
[1756946955511,0.72355145,4472.4,4472.3,1.51053173]
[1756946955723,1.23745145,4472.4,4472.3,1.51053173]
[1756946956617,1.23785913,4472.4,4472.3,1.51053173]
[1756946957910,1.03105913,4472.4,4472.3,1.51053173]
[1756946958725,1.23785913,4472.4,4472.3,1.51053173]
[1756946961125,0.52475913,4472.4,4472.3,1.51053173]
[1756946963024,1.03105913,4472.4,4472.3,1.51053173]
[1756946964213,1.23785913,4472.4,4472.3,1.51053173]
[1756946966125,1.23785913,4472.4,4472.3,1.00513173]
[1756946968623,1.23785913,4472.4,4472.3,0.81053173]
[1756946969226,0.7131,4472.1,4472.0,0.81053173]
[1756946969426,1.23785913,4472.1,4472.0,0.81053173]
[1756946969624,0.1151,4472.0,4471.6,0.81053173]
[1756946969828,0.7131,4471.1,4471.0,32.511]
[1756946970129,0.7131,4471.1,4471.0,1.51053173]
[1756946970130,1.23785913,4471.1,4471.0,1.51053173]
[1756946971629,1.23785913,4471.1,4471.0,0.81053173]
[1756946971927,1.23785913,4471.1,4471.0,1.00513173]
[1756946972323,1.23785913,4471.1,4471.0,1.30713173]
[1756946972529,1.23785913,4471.1,4471.0,1.51053173]
[1756946973230,1.23785913,4471.1,4471.0,1.00513173]
[1756946974127,1.23785913,4471.1,4471.0,0.81053173]
[1756946975331,1.23785913,4471.1,4471.0,1.00513173]
[1756946976830,1.23785913,4471.1,4471.0,0.81053173]
[1756946979439,1.23785913,4471.1,4471.0,1.00513173]
[1756946979735,1.23785913,4471.1,4471.0,1.51053173]
[1756946981331,0.1118,4471.3,4471.2,0.398]
[1756946981532,0.5063,4471.4,4471.3,0.7]
[1756946981737,0.1992,4471.4,4471.3,0.7]
[1756946981932,0.72769668,4471.4,4471.3,0.7]
[1756946982140,1.01729668,4471.4,4471.3,0.7]
[1756946983136,1.22389668,4471.4,4471.3,0.7]
[1756946983737,1.22389668,4471.4,4471.2,0.97238353]
[1756946983932,0.6953,4471.1,4471.0,0.506]
[1756946984235,1.22379668,4471.1,4471.0,0.7068]
[1756946986530,0.6953,4470.9,4470.8,0.97238353]
[1756946986739,1.22379668,4470.9,4470.8,1.17398353]
[1756946987538,1.22379668,4470.9,4470.8,1.47838353]
[1756946990036,1.22379668,4470.9,4470.8,1.67918353]
[1756946990336,0.1118,4471.6,4471.5,0.83]
[1756946990534,0.2896,4472.2,4471.5,0.83]
[1756946990736,0.4887,4472.2,4472.1,0.7068]
[1756946990935,0.6953,4472.2,4472.1,0.7068]
[1756946992336,0.1117,4472.4,4472.2,0.3044]
[1756946992534,0.1117,4472.4,4472.3,1.37478353]
[1756946992837,1.72699576,4473.5,4472.3,1.37478353]
[1756946992838,1.20694859,4473.3,4472.3,1.37478353]
[1756946993134,0.6953,4473.3,4473.2,1.17398353]
[1756946993739,0.6953,4473.3,4473.2,1.47838353]
[1756946994333,0.6953,4473.3,4473.2,1.17398353]
[1756946994935,0.6953,4473.3,4472.9,0.3044]
[1756946999342,0.2896,4473.2,4472.9,0.3044]
[1756946999646,0.6953,4473.1,4473.0,0.7068]
[1756947000442,0.6953,4473.1,4473.0,0.4024]
[1756947000938,0.6953,4473.1,4473.0,0.7068]
[1756947001944,0.4057,4473.1,4472.8,1.27678353]
[1756947002148,0.6953,4472.9,4472.8,1.47838353]
[1756947002347,1.22739361,4472.9,4472.8,1.47838353]
[1756947003048,1.22739361,4472.9,4472.8,1.67918353]
[1756947005048,1.22739361,4472.9,4472.5,0.3044]
[1756947005349,0.6953,4472.5,4472.4,1.37478353]
[1756947005544,1.22739361,4472.5,4472.4,1.37478353]
[1756947005742,1.35059361,4472.5,4472.4,1.37478353]
[1756947005949,1.35059361,4472.5,4472.4,0.2016]
[1756947006149,1.35059361,4472.5,4472.2,0.3044]
[1756947006345,0.53209361,4472.4,4472.3,0.2016]
[1756947006541,0.93779361,4472.4,4472.3,0.506]
[1756947006742,0.93779361,4472.4,4472.3,0.7068]
[1756947006944,1.22739361,4472.4,4472.3,0.7068]
[1756947007241,0.93779361,4472.4,4472.0,0.97238353]
[1756947007442,0.6953,4472.2,4472.1,0.506]
[1756947007750,1.22739361,4472.2,4472.1,0.7068]
[1756947009545,0.93779361,4472.2,4471.7,0.3044]
[1756947009749,0.6953,4471.2,4471.1,0.7068]
[1756947009945,1.22758034,4471.2,4471.1,1.67918353]
[1756947010250,0.53228034,4471.2,4471.1,1.90284353]
[1756947010450,0.53228034,4471.2,4471.1,5.90284353]
[1756947010948,0.53228034,4471.2,4471.1,5.67918353]
[1756947012755,0.1118,4471.4,4471.1,5.37478353]
[1756947012948,0.1118,4471.4,4471.3,0.3971]
[1756947013149,0.22,4472.3,4471.4,0.2893]
[1756947013350,0.7065,4471.8,4471.7,1.65878353]
[1756947013554,1.23895532,4471.8,4471.7,1.65878353]
[1756947016751,1.23895532,4471.8,4471.7,0.97238353]
[1756947016957,0.2058,4471.4,4471.3,0.97238353]
[1756947017148,0.73825532,4471.4,4471.3,1.36948353]
[1756947017554,0.53245532,4471.4,4471.3,1.65878353]
[1756947017856,0.53245532,4471.6,4471.3,1.36948353]
[1756947018056,0.53245532,4471.5,4471.4,0.2893]
[1756947018252,0.53245532,4471.5,4471.4,1.65878353]
[1756947018757,0.53245532,4471.6,4471.4,1.65878353]
[1756947018952,1.04355532,4471.6,4471.5,0.6864]
[1756947019153,1.23895532,4471.6,4471.5,0.6864]
[1756947020049,1.23895532,4471.6,4471.5,0.191]
[1756947021752,1.23895532,4471.6,4471.2,0.2893]
[1756947021954,1.23895532,4471.6,4470.0,1.09558353]
[1756947021955,0.5111,4470.7,4470.6,0.6864]
[1756947022150,0.7065,4470.7,4470.6,1.65878353]
[1756947022355,0.7065,4470.7,4470.6,1.36948353]
[1756947022552,0.7065,4470.7,4470.6,1.65878353]
[1756947022860,1.23771121,4470.7,4470.6,1.65878353]
[1756947023459,0.73701121,4470.7,4470.6,1.65878353]
[1756947023659,0.53121121,4470.7,4470.6,1.65878353]
[1756947025357,0.73701121,4470.7,4470.6,1.65878353]
[1756947025560,1.04231121,4470.7,4470.6,1.65878353]
[1756947026763,1.23771121,4470.7,4470.6,1.65878353]
[1756947026966,0.53121121,4470.7,4470.6,1.65878353]
[1756947027360,0.53121121,4470.7,4470.6,5.88246353]
[1756947027962,0.5111,4471.6,4471.5,0.3971]
[1756947028154,0.5111,4471.6,4471.5,0.6864]
[1756947028355,1.04200423,4471.6,4471.5,0.6864]
[1756947029357,1.23740423,4471.6,4471.5,0.6864]
[1756947030863,1.23740423,4471.6,4471.5,0.191]
[1756947031163,1.23740423,4471.6,4471.5,0.4803]
[1756947031855,1.23740423,4471.6,4471.5,0.6864]
[1756947032257,2.44435282,4471.6,4471.5,0.6864]
[1756947032760,1.23740423,4471.6,4471.5,0.6864]
[1756947034865,0.53090423,4471.6,4471.5,0.8075]
[1756947035066,0.1954,4472.9,4472.8,0.4954]
[1756947035261,0.1954,4472.9,4472.8,1.65878353]
[1756947035262,0.7065,4472.9,4472.8,1.65878353]
[1756947040968,0.2058,4472.9,4472.8,1.65878353]
[1756947041171,0.9432,4473.5,4473.1,0.2893]
[1756947041473,0.7065,4472.9,4472.8,0.6864]
[1756947041772,0.7065,4472.9,4472.8,1.49621064]
[1756947043163,0.7065,4472.9,4472.8,0.6864]
[1756947043362,0.7065,4472.9,4472.8,1.49621064]
[1756947043768,1.58534859,4473.4,4473.3,0.5048]
[1756947044067,1.58534859,4473.4,4473.3,1.31461064]
[1756947044268,0.3784,4473.4,4473.3,1.31461064]
[1756947044569,0.6786,4473.4,4473.3,1.31461064]
[1756947044771,0.6786,4473.4,4473.3,0.2066]
[1756947044772,1.88554859,4473.4,4473.3,0.2066]
[1756947044966,0.4886,4472.6,4472.5,0.5218]
[1756947045163,0.1884,4472.6,4472.5,1.33161064]
[1756947045768,0.1884,4472.6,4472.5,1.62981064]
[1756947046170,0.3002,4472.9,4472.5,1.62981064]
[1756947046372,0.4886,4472.9,4472.8,1.50871064]
[1756947047164,1.01672876,4472.9,4472.8,1.50871064]
[1756947047770,1.20672876,4472.9,4472.8,1.50871064]
[1756947048272,0.52812876,4472.9,4472.8,1.50871064]
[1756947048771,1.01672876,4472.9,4472.8,1.50871064]
[1756947049164,0.52812876,4472.9,4472.8,1.50871064]
[1756947053072,1.50714859,4473.7,4472.9,0.0574]
[1756947053262,1.20694859,4474.9,4473.9,0.241]
[1756947053468,0.3002,4474.7,4474.6,0.1836]
[1756947053767,1.20694859,4475.9,4474.8,0.1836]
[1756947054071,1.20694859,4475.9,4474.4,1.61962128]
[1756947054072,0.4886,4475.4,4475.3,0.1836]
[1756947054373,0.6786,4475.4,4475.3,0.1836]
[1756947054966,0.6786,4475.4,4475.3,0.99341064]
[1756947058781,0.3002,4475.4,4475.3,1.05081064]
[1756947059775,0.4172,4475.5,4475.4,0.241]
[1756947060174,0.6056,4475.5,4475.4,0.1836]
[1756947061076,0.117,4476.0,4475.4,0.1836]
[1756947061280,0.3002,4475.9,4475.8,0.1836]
[1756947062370,0.4886,4475.9,4475.8,0.99341064]
[1756947062575,0.4886,4475.9,4475.8,1.80322128]
[1756947062974,0.3002,4475.9,4475.8,1.86062128]
[1756947064582,0.3002,4475.9,4475.8,1.80322128]
[1756947064583,0.6786,4475.9,4475.8,1.80322128]
[1756947064780,0.6786,4475.9,4475.8,0.99341064]
[1756947064980,0.6786,4475.9,4475.8,0.90161064]
[1756947065581,0.6786,4475.9,4475.8,0.99341064]
[1756947069979,0.6786,4475.9,4475.8,0.80981064]
[1756947070484,0.6786,4475.9,4475.8,0.90161064]
[1756947070987,0.6786,4475.9,4475.8,0.99341064]
[1756947072683,0.6786,4475.9,4475.8,0.90161064]
[1756947073384,0.6786,4475.9,4475.1,0.0573]
[1756947073576,0.8105,4475.5,4475.4,0.0917]
[1756947074782,0.8105,4475.5,4475.4,0.90151064]
[1756947078082,1.33312704,4475.5,4475.4,0.90151064]
[1756947078288,1.33312704,4475.5,4475.4,0.99321064]
[1756947081394,0.93662704,4475.5,4475.4,1.05051064]
[1756947081886,0.117,4476.0,4475.6,0.3112]
[1756947082092,1.52274859,4476.0,4475.9,2.33352128]
[1756947082491,0.3158,4476.0,4475.9,2.33352128]
[1756947083896,0.5135,4476.0,4475.9,2.33352128]
[1756947084087,0.8104,4476.0,4475.9,2.33352128]
[1756947084393,0.2969,4476.3,4476.2,0.4027]
[1756947084582,0.3965,4476.6,4476.5,0.4027]
[1756947084781,0.6934,4476.6,4476.5,0.4027]
[1756947084992,0.6934,4476.6,4476.5,1.21251064]
[1756947085389,0.4957,4476.6,4476.5,1.52371064]
[1756947085789,0.2969,4476.6,4476.5,1.52371064]
[1756947086893,0.31915166,4477.0,4476.9,0.4027]